bitfinex/quotes_ETHUSD_20240924
["timestamp","ask_amount","ask_price","bid_price","bid_amount"]
[1727147732570,3.79925,2632.1,2631.6,4.67903763]
[1727147732770,0.04048297,2632.0,2631.6,4.67903763]
[1727147733166,3.79913,2632.2,2631.6,4.67903763]
[1727147733366,0.04048297,2632.1,2631.6,4.67903763]
[1727147734598,0.04048297,2632.1,2631.6,0.87909763]
[1727147734900,3.83974297,2632.1,2631.6,0.87909763]
[1727147735098,3.79926,2632.1,2631.6,3.79996]
[1727147735298,0.04048297,2632.0,2631.6,3.79996]
[1727147735789,0.04048297,2632.0,2631.5,4.23281629]
[1727147735981,0.795,2631.9,2631.5,4.23281629]
[1727147736159,0.795,2631.9,2631.6,0.42328163]
[1727147736803,0.04048297,2631.8,2631.6,0.42328163]
[1727147737307,0.04048297,2631.8,2631.6,4.22324163]
[1727147737799,0.04048297,2631.8,2631.7,3.79982]
[1727147738333,4.5941,2632.2,2631.7,3.79982]
[1727147738470,0.04048297,2631.8,2631.7,4.60213016]
[1727147738658,4.5941,2632.2,2631.7,4.60213016]
[1727147738855,0.04048297,2631.8,2631.7,4.60213016]
[1727147739059,4.5941,2632.2,2631.7,4.60213016]
[1727147739302,0.04048297,2631.8,2631.7,4.60213016]
[1727147739787,4.5941,2632.2,2631.7,4.60213016]
[1727147740099,0.04048297,2631.8,2631.7,4.60213016]
[1727147740259,4.5941,2632.2,2631.7,4.60213016]
[1727147740455,0.04048297,2631.8,2631.7,4.60213016]
[1727147740695,14.6241,2632.2,2631.7,4.60213016]
[1727147740901,0.04048297,2631.8,2631.7,3.79982]
[1727147741407,14.6241,2632.2,2631.7,3.79982]
[1727147741565,0.04034754,2631.8,2631.7,3.79982]
[1727147741766,10.03,2632.2,2632.0,3.79929]
[1727147741988,10.03,2632.2,2632.1,0.379929]
[1727147742216,10.03,2632.3,2631.9,3.79951]
[1727147742365,10.03,2632.3,2632.0,3.79936]
[1727147742567,10.03,2632.3,2631.9,3.79953]
[1727147742767,13.82904,2632.3,2631.7,4.55784]
[1727147743113,3.7991,2632.2,2631.7,1.19488006]
[1727147743281,3.7991,2632.2,2631.6,4.22316163]
[1727147743782,3.7991,2632.2,2631.6,8.02305163]
[1727147744189,0.795,2632.1,2631.6,8.02305163]
[1727147744596,0.795,2632.1,2631.4,3.0]
[1727147744770,0.795,2632.1,2631.3,4.55837]
[1727147744771,3.79947,2632.0,2631.3,4.55837]
[1727147744976,3.79947,2632.0,2631.5,3.80005]
[1727147745304,3.79947,2632.0,2631.4,3.80016]
[1727147747036,3.79947,2632.0,2631.4,4.636033]
[1727147747497,7.59895,2632.0,2631.4,4.636033]
[1727147747838,3.79969,2631.8,2631.4,0.835873]
[1727147748004,12.42094419,2632.3,2631.4,4.636093]
[1727147748337,4.62333,2632.2,2631.7,3.79972]
[1727147748537,4.62333,2632.2,2631.6,7.59972]
[1727147748836,4.62333,2632.2,2631.6,4.9601892]
[1727147749339,4.62333,2632.2,2631.7,3.79981]
[1727147751051,4.62333,2632.2,2631.6,1.1603392]
[1727147751252,4.62333,2632.2,2631.4,4.0283902]
[1727147751253,3.79926,2632.1,2631.5,3.79997]
[1727147751550,3.79939,2632.0,2631.5,3.79997]
[1727147751908,3.79939,2632.0,2631.4,0.8605912]
[1727147752245,0.8241,2631.9,2631.4,4.6608412]
[1727147752456,0.8241,2631.9,2631.5,0.92192512]
[1727147753311,0.8241,2631.9,2631.5,4.72195512]
[1727147753533,0.8241,2631.9,2631.5,0.92192512]
[1727147756168,3.79972,2631.8,2631.4,0.0247182]
[1727147756507,7.59949,2631.8,2631.4,0.0247182]
[1727147756702,3.79972,2631.8,2631.4,0.0247182]
[1727147756998,3.83983642,2631.7,2631.4,0.0247182]
[1727147757168,3.83983642,2631.7,2631.2,3.7252482]
[1727147758198,0.8241,2631.5,2631.1,3.8006]
[1727147758681,0.04001642,2631.4,2631.1,7.60121]
[1727147758883,0.04001642,2631.4,2631.1,4.98235263]
[1727147761680,0.04001642,2631.4,2631.0,0.7835]
[1727147762073,0.04001642,2631.4,2630.9,6.80089]
[1727147762410,0.04001642,2631.4,2631.0,3.80083]
[1727147762576,0.04001642,2631.4,2630.9,6.80089]
[1727147762779,0.04001642,2631.4,2631.0,3.80083]
[1727147762974,0.04001642,2631.4,2631.1,3.8006]
[1727147763177,0.04001642,2631.4,2631.0,5.0007986]
[1727147763590,0.04001642,2631.4,2631.1,3.80059]
[1727147763788,0.04001642,2631.4,2631.0,5.50884701]
[1727147764316,10.03,2631.3,2631.0,5.0007986]
[1727147764893,0.04001642,2631.2,2631.0,5.0007986]
[1727147765096,10.03,2631.3,2631.0,1.1999686]
[1727147765321,0.04001642,2631.1,2631.0,1.1999686]
[1727147765524,10.03,2631.3,2631.0,1.1999686]
[1727147765991,0.04001642,2631.2,2631.0,1.1999686]
[1727147766197,2.39035073,2632.0,2631.1,9.75559486]
[1727147766439,0.06625631,2632.9,2631.1,9.75559486]
[1727147766440,3.79739,2633.4,2632.7,3.7983]
[1727147766580,3.79706,2633.7,2633.0,3.167799]
[1727147766784,0.0384512,2633.8,2633.0,3.167799]
[1727147767007,0.0384512,2633.8,2633.0,3.24374844]
[1727147767212,0.0384512,2633.8,2633.1,3.79766]
[1727147767681,0.0384512,2633.8,2633.2,3.79765]
[1727147767883,0.0384512,2633.8,2633.1,3.79766]
[1727147768124,0.7543,2633.7,2632.8,3.8164]
[1727147768339,4.55138,2633.7,2632.8,7.61452]
[1727147768570,0.45898312,2633.6,2633.0,3.79788]
[1727147768726,0.7543,2633.7,2633.0,7.59572]
[1727147769263,0.7543,2633.7,2633.1,3.79767]
[1727147770850,0.7543,2633.7,2633.0,3.79784]
[1727147770851,0.7543,2633.7,2633.2,3.7976]
[1727147771936,3.79709,2633.6,2633.0,3.79784]
[1727147772138,0.834834,2633.5,2633.0,3.79784]
[1727147774089,3.79737,2633.4,2632.8,6.79816]
[1727147774247,3.79737,2633.4,2632.7,3.0]
[1727147774584,0.8083,2633.1,2632.7,3.0]
[1727147775479,1.268897,2633.1,2632.6,3.79839]
[1727147776493,5.066707,2633.1,2632.6,3.79839]
[1727147776791,5.066707,2633.1,2632.4,8.04911924]
[1727147776974,1.268897,2633.1,2632.5,3.0]
[1727147777178,3.79796,2633.0,2632.5,3.0]
[1727147777375,0.5066857,2632.9,2632.5,3.0]
[1727147778168,1.268897,2633.1,2632.5,3.0]
[1727147778169,3.79799,2633.0,2632.5,3.0]
[1727147778695,1.268897,2633.1,2632.5,3.0]
[1727147779191,3.79795,2633.0,2632.4,3.79869]
[1727147779390,3.7981,2632.9,2632.4,3.79869]
[1727147779577,1.268897,2633.1,2632.2,7.60404]
[1727147779752,3.79797,2633.0,2632.4,3.79879]
[1727147779948,7.59603,2633.0,2632.4,3.79879]
[1727147780369,3.79797,2633.0,2632.4,3.79879]
[1727147781851,7.59603,2633.0,2632.4,3.79879]
[1727147782194,3.79846,2632.7,2632.1,6.79918]
[1727147782349,3.79862,2632.6,2632.1,3.0]
[1727147782549,0.8083,2632.5,2632.0,3.79932]
[1727147782762,0.8083,2632.5,2631.9,1.0]
[1727147783056,0.8083,2632.5,2632.0,3.79937]
[1727147783387,1.268992,2632.5,2632.0,3.79937]
[1727147783592,1.268992,2632.5,2631.9,1.0]
[1727147783890,1.268992,2632.5,2632.0,3.79937]
[1727147785449,5.067692,2632.5,2632.0,3.79937]
[1727147785686,5.067692,2632.5,2631.9,7.79953]
[1727147787291,4.6855412,2632.4,2631.9,1.0]
[1727147789311,3.799,2632.3,2631.9,1.0]
[1727147790010,4.6855412,2632.4,2631.9,1.0]
[1727147790388,4.6855412,2632.4,2631.9,4.7995]
[1727147790616,4.6855412,2632.4,2631.9,1.0]
[1727147792275,0.54938412,2632.3,2631.9,1.0]
[1727147794116,3.79891,2632.4,2631.9,1.0]
[1727147794521,3.79891,2632.4,2631.9,4.79951]
[1727147795377,4.60697,2632.5,2631.9,4.79951]
[1727147795713,3.79883,2632.4,2631.9,1.0]
[1727147795883,0.8083,2632.5,2632.0,3.79937]
[1727147796084,14.366109,2632.8,2632.5,3.79866]
[1727147796085,7.4,2632.8,2632.5,3.79866]
[1727147796412,7.4,2632.8,2632.3,7.59779]
[1727147796721,7.4,2632.8,2632.5,3.79859]
[1727147796905,7.4,2632.8,2632.6,3.7985]
[1727147797211,7.4,2632.8,2632.5,3.79859]
[1727147797212,7.4,2632.8,2632.2,3.79896]
[1727147798209,7.4,2632.8,2632.4,3.79869]
[1727147798411,7.4,2632.8,2632.5,3.79856]
[1727147798717,7.4,2632.8,2632.6,3.79842]
[1727147799679,1.0,2632.8,2632.6,3.79842]
[1727147799914,1.0,2632.8,2632.5,3.79856]
[1727147800515,1.0,2632.8,2632.5,7.59714]
[1727147800882,1.0,2632.8,2632.5,3.79856]
[1727147801112,1.0,2632.8,2632.5,7.59714]
[1727147801409,1.0,2632.8,2632.6,3.79852]
[1727147801595,3.79768,2633.2,2632.5,3.79856]
[1727147801596,1.0,2632.9,2632.8,3.79823]
[1727147801938,1.0,2633.2,2632.9,3.79808]
[1727147802075,1.0,2633.2,2632.7,3.79838]
[1727147802275,1.0,2633.2,2632.8,3.79821]
[1727147802914,1.0,2633.2,2632.9,3.79807]
[1727147804282,1.0,2633.2,2632.9,3.798]
[1727147804481,1.0,2633.2,2632.7,3.7983]
[1727147804815,1.0,2633.2,2632.9,3.79806]
[1727147807696,1.0,2633.2,2632.6,3.79847]
[1727147807893,1.556516,2633.2,2632.6,3.79847]
[1727147808095,5.354256,2633.2,2632.6,3.79847]
[1727147808785,5.354256,2633.2,2632.6,3.0]
[1727147809020,1.556516,2633.2,2632.8,3.79822]
[1727147810637,1.0,2633.2,2632.8,3.79822]
[1727147810913,1.0,2633.2,2632.5,0.7771]
[1727147811116,1.0,2633.2,2632.6,3.0]
[1727147811284,1.0,2633.2,2632.7,3.79827]
[1727147811684,1.0,2633.2,2632.8,3.79822]
[1727147813685,1.0,2633.2,2632.7,3.79827]
[1727147813686,4.79766,2633.2,2632.7,3.79827]
[1727147813886,5.733942,2633.2,2632.7,3.79827]
[1727147814809,1.936282,2633.2,2632.7,3.79827]
[1727147815008,1.0,2633.2,2632.7,3.79827]
[1727147815526,1.0,2633.2,2632.7,7.59653]
[1727147815891,1.0,2633.2,2632.8,3.79822]
[1727147816507,1.0,2633.2,2632.9,3.79806]
[1727147817541,1.0,2633.2,2632.7,3.79826]
[1727147818247,1.0,2633.2,2632.8,3.79823]
[1727147818560,1.0,2633.2,2632.7,7.59656]
[1727147819748,1.0,2633.2,2632.7,7.59655]
[1727147820051,1.0,2633.2,2632.7,7.59654]
[1727147821410,1.0,2633.2,2632.8,3.79822]
[1727147821841,1.0,2633.2,2632.9,3.79805]
[1727147822006,1.0,2633.2,2632.8,3.79822]
[1727147822747,1.0,2633.2,2632.7,3.79826]
[1727147822911,1.0,2633.2,2632.9,3.79804]
[1727147824109,1.0,2633.2,2632.9,3.79801]
[1727147826440,1.0,2633.2,2632.7,3.79829]
[1727147826441,1.0,2633.2,2632.8,3.79819]
[1727147826940,1.0,2633.2,2632.9,3.79804]
[1727147829397,1.0,2633.2,2633.1,3.7978]
[1727147830381,11.2353712,2633.8,2633.5,3.79715]
[1727147830382,1.0,2633.7,2633.5,3.79715]
[1727147830589,1.0,2633.7,2633.4,0.7728]
[1727147830745,1.0,2633.7,2633.4,4.57015]
[1727147830946,4.79696,2633.7,2633.1,4.57054]
[1727147831152,0.7581,2633.5,2633.1,3.79774]
[1727147833167,0.7581,2633.5,2632.9,7.57081]
[1727147833373,0.7581,2633.5,2632.9,4.57081]
[1727147833669,4.55534,2633.5,2633.0,3.79794]
[1727147833876,4.55533,2633.5,2632.9,3.79801]
[1727147834076,0.88359511,2633.4,2632.9,3.79801]
[1727147834277,0.88359511,2633.4,2632.7,4.57109]
[1727147834492,3.79764,2633.3,2632.7,3.79829]
[1727147836009,1.0,2633.7,2632.9,3.0]
[1727147836163,1.0,2633.7,2633.4,3.79729]
[1727147837195,1.0,2633.7,2633.5,3.79719]
[1727147837396,1.0,2633.7,2633.6,3.79708]
[1727147838790,1.0,2633.7,2633.6,4.255658]
[1727147841020,0.0384512,2633.8,2633.7,3.79693]
[1727147841189,0.0384512,2633.8,2633.7,3.87285713]
[1727147841688,0.0384512,2633.8,2633.7,3.79693]
[1727147842514,0.0384512,2633.8,2633.7,10.82936109]
[1727147842717,0.0384512,2633.8,2633.7,13.3168974]
[1727147843380,0.0384512,2633.8,2633.7,12.79028682]
[1727147843976,0.0384512,2633.8,2633.7,13.20119689]
[1727147844177,3.6484624,2634.6,2633.9,3.7966]
[1727147844416,7.4442324,2634.6,2633.9,3.7966]
[1727147844599,0.74442324,2634.5,2634.0,3.7965]
[1727147844821,3.6484624,2634.6,2634.0,3.7965]
[1727147845820,7.4442224,2634.6,2634.0,3.7965]
[1727147846033,3.6484624,2634.6,2634.0,3.7965]
[1727147846380,3.7958,2634.5,2634.0,3.7965]
[1727147846582,3.6484624,2634.6,2634.0,3.7965]
[1727147847200,0.7758,2634.5,2634.0,3.7965]
[1727147847687,4.57169,2634.5,2633.8,6.7967]
[1727147848404,4.57169,2634.5,2633.9,3.79664]
[1727147848593,0.7758,2634.5,2633.9,3.79656]
[1727147848796,4.57162,2634.5,2633.9,3.79656]
[1727147850389,4.57162,2634.5,2633.9,5.45523768]
[1727147851095,3.79595,2634.4,2633.9,1.65867768]
[1727147851301,3.79608,2634.3,2633.7,5.11389591]
[1727147851499,3.79608,2634.3,2633.7,4.58554]
[1727147851500,0.03343408,2634.2,2633.7,4.58554]
[1727147851797,3.79595,2634.4,2633.8,3.79675]
[1727147852129,0.7758,2634.5,2633.7,0.7887]
[1727147852426,0.7758,2634.5,2633.9,3.79656]
[1727147852427,0.03446367,2634.3,2633.9,3.79656]
[1727147852617,4.57159,2634.5,2633.9,3.79656]
[1727147852811,0.03446367,2634.2,2633.9,3.79656]
[1727147852989,4.57159,2634.5,2633.9,3.79656]
[1727147853192,0.03446367,2634.1,2633.9,4.45302437]
[1727147853402,4.57159,2634.5,2633.9,4.45302437]
[1727147853592,0.03446367,2634.0,2633.9,4.45302437]
[1727147854084,4.57159,2634.5,2634.0,3.79645]
[1727147854085,0.7758,2634.5,2634.0,3.79645]
[1727147854289,0.03446367,2634.4,2634.0,3.79645]
[1727147854489,0.03446367,2634.4,2634.0,4.64889322]
[1727147854895,0.03446367,2634.4,2634.1,0.83972674]
[1727147855227,0.8241,2634.9,2634.4,3.79584]
[1727147855585,0.8241,2634.9,2634.5,3.79577]
[1727147855928,0.8241,2634.9,2634.5,3.79569]
[1727147856097,0.8241,2634.9,2634.5,1.0759329]
[1727147856300,3.79535,2634.8,2634.2,3.7961]
[1727147857331,0.8241,2634.9,2634.3,3.79597]
[1727147857733,4.61932,2634.9,2634.3,3.79597]
[1727147858133,4.61932,2634.9,2634.2,3.7961]
[1727147858134,0.8241,2634.9,2634.4,3.79587]
[1727147858828,4.61941,2634.9,2634.2,3.7961]
[1727147859038,3.79543,2634.8,2634.2,3.7961]
[1727147859389,0.8241,2634.9,2634.2,4.65411422]
[1727147859634,0.8241,2634.9,2634.3,3.79599]
[1727147860225,0.8241,2634.9,2634.4,3.79583]
[1727147860433,4.61931,2634.9,2634.3,3.79599]
[1727147861736,0.03345329,2634.8,2634.3,3.79599]
[1727147861946,3.79574,2634.6,2634.1,0.7638]
[1727147862140,0.8241,2634.5,2634.0,3.79648]
[1727147862511,0.03345329,2634.4,2634.0,3.79648]
[1727147863633,0.03345329,2634.4,2633.9,4.56036]
[1727147863954,0.03345329,2634.4,2633.6,3.02835591]
[1727147863955,0.8241,2634.1,2633.6,2.5]
[1727147864115,3.79693,2633.7,2633.6,2.5]
[1727147864446,4.66140795,2633.7,2633.6,2.5]
[1727147864800,4.62803,2633.7,2633.6,2.5]
[1727147866903,5.17803,2633.7,2633.6,2.5]
[1727147867251,9.5600909,2633.7,2633.6,2.5]
[1727147867835,6.3922919,2633.7,2633.6,2.5]
[1727147868011,9.5600909,2633.7,2633.6,2.5]
[1727147868373,12.5600909,2633.7,2633.6,2.5]
[1727147869842,9.3922919,2633.7,2633.6,2.5]
[1727147870216,7.62803,2633.7,2633.6,2.5]
[1727147873647,8.17803,2633.7,2633.6,2.5]
[1727147880789,7.62803,2633.7,2633.6,2.5]
[1727147882080,6.79693,2633.7,2633.6,2.5]
[1727147885181,3.79679,2633.8,2633.6,2.5]
[1727147887553,7.59369,2633.8,2633.6,2.5]
[1727147888094,3.79638,2634.1,2633.7,0.8061]
[1727147888293,3.79613,2634.3,2633.7,0.8061]
[1727147888607,3.7965,2634.1,2633.7,0.8061]
[1727147888787,3.7967,2633.9,2633.7,0.8061]
[1727147888981,3.7967,2633.9,2633.7,1.16171]
[1727147891665,3.7969,2633.8,2633.6,2.5]
[1727147892054,3.79693,2633.7,2633.6,2.5]
[1727147897193,4.34693,2633.7,2633.6,2.5]
[1727147905202,3.0,2634.1,2633.6,6.29705]
[1727147905411,3.79611,2634.3,2633.7,4.04684]
[1727147905741,3.79579,2634.5,2633.9,0.8316]
[1727147905742,3.7958,2634.5,2633.9,0.8316]
[1727147905901,3.79596,2634.4,2633.9,0.8316]
[1727147906833,3.79612,2634.3,2633.9,0.8316]
[1727147908204,4.34598,2634.4,2633.9,0.8316]
[1727147908521,0.55,2634.4,2633.9,0.8316]
[1727147908701,0.55,2634.4,2633.9,1.31943]
[1727147908905,4.34593,2634.4,2633.9,1.31943]
[1727147909144,3.79556,2634.7,2634.0,0.7831]
[1727147909307,3.79566,2634.6,2634.0,4.5795]
[1727147909726,3.79556,2634.7,2634.0,4.5795]
[1727147909941,3.79556,2634.7,2634.1,4.25428]
[1727147910955,6.58297513,2635.1,2634.2,0.7831]
[1727147911163,3.79499,2635.1,2634.6,0.7831]
[1727147911445,3.79506,2635.0,2634.6,0.7831]
[1727147912348,3.79536,2634.8,2634.6,0.7831]
[1727147913846,3.79552,2634.7,2634.4,0.7831]
[1727147914150,3.79552,2634.7,2633.6,4.79114591]
[1727147914151,3.79622,2634.2,2633.8,0.7831]
[1727147914310,3.79659,2634.0,2633.8,0.7831]
[1727147914515,3.79692,2633.8,2633.6,1.0]
[1727147915014,3.79693,2633.7,2633.6,1.0]
[1727147916358,4.34693,2633.7,2633.6,1.0]
[1727147916516,5.236435,2633.7,2633.6,1.0]
[1727147917828,4.34693,2633.7,2633.6,1.0]
[1727147918236,4.34693,2633.7,2633.6,1.5]
[1727147920973,3.79693,2633.7,2633.6,1.5]
[1727147922750,4.34693,2633.7,2633.6,1.5]
[1727147925048,3.79651,2634.0,2633.7,0.7656]
[1727147925263,7.59293,2634.1,2633.7,0.7656]
[1727147925761,3.79646,2634.1,2633.7,0.7656]
[1727147925963,3.79675,2633.9,2633.6,1.5]
[1727147926124,0.8329,2634.0,2633.6,1.5]
[1727147926125,3.79693,2633.7,2633.6,1.5]
[1727147933264,4.62983,2633.7,2633.6,1.5]
[1727147936668,11.347629,2633.7,2633.6,1.078125]
[1727147937017,11.347629,2633.7,2632.4,0.7656]
[1727147937018,3.79864,2632.6,2632.4,0.7656]
[1727147939687,3.79862,2632.6,2632.4,0.7656]
[1727147940130,3.79862,2632.6,2632.2,0.0384512]
[1727147940131,3.79862,2632.6,2632.2,0.8598512]
[1727147940581,3.7984,2632.7,2632.2,0.8598512]
[1727147941510,4.6312,2632.8,2632.2,0.8598512]
[1727147941713,7.59667,2632.8,2632.2,1.32576032]
[1727147942511,3.79841,2632.7,2632.2,1.32576032]
[1727147945109,6.965939,2632.9,2632.2,0.8598512]
[1727147945317,3.79893,2632.4,2632.2,0.8598512]
[1727147945485,0.7856,2633.0,2632.2,0.8598512]
[1727147945678,3.79862,2632.6,2632.2,0.8598512]
[1727147946821,3.79862,2632.6,2632.2,1.32577232]
[1727147946982,3.79838,2632.7,2632.3,0.8214]
[1727147947182,3.79809,2632.9,2632.4,3.79881]
[1727147947390,6.79824,2632.8,2632.3,0.8214]
[1727147947617,6.79825,2632.8,2632.3,1.45545833]
[1727147949730,3.79825,2632.8,2632.3,1.45545833]
[1727147950520,3.79825,2632.8,2632.3,5.25440833]
[1727147950827,3.79825,2632.8,2632.3,1.45545833]
[1727147951189,3.79825,2632.8,2632.4,0.52929195]
[1727147953102,3.79825,2632.8,2632.3,0.8214]
[1727147954291,7.59658,2632.8,2632.3,0.8214]
[1727147954634,3.79825,2632.8,2632.3,0.8214]
[1727147956313,7.59658,2632.8,2632.3,0.8214]
[1727147956896,3.79825,2632.8,2632.3,0.8214]
[1727147957431,7.59659,2632.8,2632.3,0.8214]
[1727147958149,3.79839,2632.7,2632.3,0.8214]
[1727147958729,3.79825,2632.8,2632.3,0.8214]
[1727147960135,7.59657,2632.8,2632.3,0.8214]
[1727147960347,7.59657,2632.8,2632.3,1.28728512]
[1727147962853,3.79825,2632.8,2632.3,1.28728512]
[1727147963007,3.79839,2632.7,2632.3,1.28728512]
[1727147964915,3.79839,2632.7,2632.3,0.8214]
[1727147969466,1.46197725,2632.5,2632.2,0.0384512]
[1727147969629,5.26092725,2632.3,2632.2,0.0384512]
[1727147969972,10.01874098,2632.3,2632.2,0.0384512]
[1727147970461,11.7268887,2632.3,2632.2,0.0384512]
[1727147974355,12.2768887,2632.3,2632.2,0.0384512]
[1727147975965,15.06168471,2632.3,2632.2,0.0384512]
[1727147976491,35.43642899,2632.3,2632.2,0.0384512]
[1727147976828,39.44127829,2632.3,2632.2,0.0384512]
[1727147977029,39.44127829,2632.3,2631.4,0.0384512]
[1727147977030,10.74463497,2631.5,2631.4,0.0384512]
[1727147977271,11.67825787,2631.5,2631.4,0.0384512]
[1727147977427,8.5081329,2631.5,2631.4,0.0384512]
[1727147978444,6.80011,2631.5,2631.4,0.0384512]
[1727147981834,3.80011,2631.5,2631.4,0.0384512]
[1727147982468,3.79997,2631.6,2631.5,0.7516]
[1727147984363,3.79997,2631.6,2631.4,0.0384512]
[1727147985772,3.79974,2631.8,2631.4,0.0384512]
[1727147985936,3.79974,2631.8,2631.5,0.8116]
[1727147986261,3.79983,2631.7,2631.5,0.8116]
[1727147987465,3.79996,2631.6,2631.5,0.8116]
[1727147987881,7.59952,2631.8,2631.5,0.8116]
[1727147988181,3.79983,2631.7,2631.5,0.8116]
[1727147990674,3.79974,2631.8,2631.5,0.8116]
[1727147990874,3.80011,2631.5,2631.4,0.0384512]
[1727147991302,3.79996,2631.6,2631.4,0.0384512]
[1727147991510,7.60007,2631.6,2631.4,0.0384512]
[1727147991812,3.79996,2631.6,2631.4,0.0384512]
[1727147991990,3.80011,2631.5,2631.4,0.0384512]
[1727147992204,3.79964,2631.9,2631.5,0.8116]
[1727147992374,7.59931,2631.9,2631.5,0.8116]
[1727147992774,3.79964,2631.9,2631.5,0.8116]
[1727147992971,3.7997,2631.8,2631.5,0.8116]
[1727147997698,7.5993,2631.9,2631.5,0.8116]
[1727147998098,13.33983861,2632.7,2631.6,0.8116]
[1727147998309,3.79912,2632.2,2631.5,0.8116]
[1727147998617,3.79925,2632.1,2631.7,0.8116]
[1727147998812,2.79925,2632.1,2631.7,0.8116]
[1727147999119,3.79906,2632.3,2631.7,0.8116]
[1727148000487,3.79925,2632.1,2631.7,0.8116]
[1727148000676,7.59814,2632.3,2631.7,0.8116]
[1727148000876,3.7991,2632.2,2631.8,0.461156]
[1727148002006,3.79846,2632.7,2632.2,0.777]
[1727148002255,3.79895,2632.3,2632.2,0.777]
[1727148002417,3.7992,2632.2,2631.9,0.777]
[1727148003712,3.79933,2632.1,2631.9,0.777]
[1727148005754,3.79933,2632.1,2631.6,0.777]
[1727148005755,3.79941,2632.0,2631.6,0.777]
[1727148005909,3.79936,2632.1,2631.6,0.777]
[1727148006233,3.79954,2631.9,2631.6,0.777]
[1727148007018,3.79982,2631.7,2631.6,0.777]
[1727148007323,3.79982,2631.7,2631.4,0.8154512]
[1727148008224,3.79982,2631.7,2631.4,1.27704832]
[1727148008952,3.79982,2631.7,2631.4,0.8154512]
[1727148009477,3.79982,2631.7,2631.4,0.0384512]
[1727148009478,3.80001,2631.6,2631.4,0.0384512]
[1727148009963,3.79998,2631.6,2631.4,0.0384512]
[1727148010163,3.80011,2631.5,2631.4,0.0384512]
[1727148010965,3.79998,2631.6,2631.4,0.0384512]
[1727148011332,3.79975,2631.8,2631.4,0.0384512]
[1727148012165,3.79982,2631.7,2631.4,0.0384512]
[1727148015289,4.32321,2631.5,2631.4,0.0384512]
[1727148018804,7.87321,2631.5,2631.4,0.0384512]
[1727148019046,10.65973775,2631.5,2631.4,0.0384512]
[1727148019305,7.87321,2631.5,2631.4,0.0384512]
[1727148020688,10.65973775,2631.5,2631.4,0.0384512]
[1727148021005,9.67415284,2631.5,2631.4,0.0384512]
[1727148021309,12.46171827,2631.5,2631.4,0.0384512]
[1727148022107,14.46152908,2631.5,2631.4,0.0384512]
[1727148022406,12.07080634,2631.5,2631.4,0.0384512]
[1727148022633,12.07080634,2631.5,2630.6,0.0384512]
[1727148022634,7.87436,2630.7,2630.6,0.0384512]
[1727148022792,11.04409861,2630.7,2630.6,0.0384512]
[1727148024309,7.87436,2630.7,2630.6,0.0384512]
[1727148024826,11.04409861,2630.7,2630.6,0.0384512]
[1727148025478,15.05009861,2630.7,2630.6,0.0384512]
[1727148025683,20.01842767,2630.7,2630.6,0.0384512]
[1727148025884,16.01242767,2630.7,2630.6,0.0384512]
[1727148026183,13.22502345,2630.7,2630.6,0.0384512]
[1727148027888,13.22502345,2630.7,2629.8,0.0384512]
[1727148027889,6.80242,2629.9,2629.8,0.0384512]
[1727148028120,8.005762,2629.9,2629.8,0.0384512]
[1727148029884,6.80242,2629.9,2629.8,0.0384512]
[1727148031943,6.88236456,2629.9,2629.8,0.0384512]
[1727148038281,0.07994456,2629.9,2629.8,0.0384512]
[1727148038578,0.07994456,2629.9,2629.8,3.20818981]
[1727148038881,3.8019,2630.3,2629.8,3.98508981]
[1727148039052,0.07694831,2629.9,2629.8,3.98508981]
[1727148039596,3.80203,2630.2,2629.8,3.98508981]
[1727148039878,0.07694831,2629.9,2629.8,3.98508981]
[1727148040074,3.80203,2630.2,2629.8,3.98508981]
[1727148040541,0.07694831,2630.1,2629.8,3.98508981]
[1727148044489,3.87908831,2630.1,2629.8,3.98508981]
[1727148045899,0.07694831,2630.1,2629.8,3.98508981]
[1727148046188,6.80178,2630.4,2629.8,3.98508981]
[1727148046352,0.07694831,2630.3,2629.8,3.98508981]
[1727148046775,3.0,2630.2,2629.8,3.98508981]
[1727148046982,3.80186,2630.3,2629.8,4.38359879]
[1727148047160,0.07694831,2630.2,2629.8,4.38359879]
[1727148047378,0.07694831,2630.2,2629.8,4.88359879]
[1727148047683,3.80186,2630.3,2629.8,4.88359879]
[1727148047884,0.07713484,2630.1,2629.8,4.88359879]
[1727148048092,3.80186,2630.3,2629.8,4.88359879]
[1727148048293,0.07713484,2630.0,2629.8,4.88359879]
[1727148048457,3.80186,2630.3,2629.8,4.88359879]
[1727148048656,0.07713484,2629.9,2629.8,4.88359879]
[1727148049178,3.80186,2630.3,2629.8,4.88359879]
[1727148049488,0.07713484,2630.2,2629.8,4.88359879]
[1727148049993,0.07713484,2630.1,2629.8,4.88359879]
[1727148050350,3.80186,2630.3,2629.8,4.88359879]
[1727148050564,0.07713484,2630.2,2629.8,4.88359879]
[1727148050800,3.80186,2630.3,2629.8,4.88359879]
[1727148051004,0.07713484,2630.1,2629.8,4.88359879]
[1727148051190,3.80186,2630.3,2629.8,4.88359879]
[1727148051506,0.07713484,2630.2,2629.8,5.38359879]
[1727148051804,0.07713484,2630.2,2629.8,1.0384512]
[1727148051805,3.0,2630.2,2629.8,1.0384512]
[1727148051969,3.87928484,2630.1,2629.8,1.0384512]
[1727148052169,3.8023,2630.0,2629.8,1.0384512]
[1727148052366,3.87928484,2630.1,2629.8,1.0384512]
[1727148052367,3.80242,2629.9,2629.8,1.0384512]
[1727148052596,3.87955484,2629.9,2629.8,1.0384512]
[1727148054966,0.07713484,2629.9,2629.8,1.0384512]
[1727148055495,0.07713484,2629.9,2629.8,1.5384512]
[1727148056004,0.07713484,2629.9,2629.8,2.09119018]
[1727148056422,3.80202,2630.2,2629.8,2.09119018]